bitfinex-derivatives/quotes_ETHF0:USTF0_20241023
["timestamp","ask_amount","ask_price","bid_price","bid_amount"]
[1729671864701,0.34667,2597.8,2597.5,40.8]
[1729671864903,0.34667,2597.8,2597.7,3.01]
[1729671867201,3.2078,2597.9,2597.5,45.5976]
[1729671867501,0.34669,2597.7,2597.5,45.5976]
[1729671870305,0.34668,2597.7,2597.5,45.5976]
[1729671871902,0.34669,2597.6,2597.5,40.8]
[1729671872099,0.34669,2597.6,2597.2,9.9093]
[1729671872100,0.34673,2597.4,2597.2,9.9093]
[1729671872597,0.34673,2597.4,2597.3,40.8]
[1729671873006,3.8412,2597.6,2597.3,40.8]
[1729671873205,0.34672,2597.5,2597.3,40.8]
[1729671874105,3.95827087,2597.8,2597.3,40.8]
[1729671874413,0.34672,2597.5,2597.3,40.8]
[1729671875105,0.3467,2597.6,2597.3,41.14673]
[1729671875405,3.95827087,2597.8,2597.3,40.8]
[1729671875606,0.3467,2597.6,2597.3,41.14673]
[1729671876010,0.34671,2597.5,2597.3,40.8]
[1729671876202,0.3467,2597.6,2597.3,41.14673]
[1729671876804,3.95827087,2597.8,2597.3,40.8]
[1729671877011,0.34672,2597.5,2597.2,9.9093]
[1729671877306,0.34672,2597.5,2597.2,10.25604]
[1729671877607,0.34672,2597.5,2597.2,51.05604]
[1729671878104,0.34673,2597.3,2597.2,47.6993]
[1729671878310,5.77547087,2597.6,2597.2,47.6993]
[1729671878613,0.34673,2597.3,2597.2,47.6993]
[1729671881411,0.34673,2597.4,2597.2,50.7093]
[1729671881614,0.34672,2597.4,2597.2,50.7093]
[1729671882819,0.34673,2597.3,2597.2,50.7093]
[1729671883209,0.34673,2597.4,2597.2,50.7093]
[1729671883410,3.7843,2597.6,2597.2,50.7093]
[1729671883612,0.34673,2597.4,2597.2,50.7093]
[1729671885010,0.34672,2597.5,2597.2,51.05604]
[1729671885219,2.2585,2597.6,2597.3,0.34672]
[1729671887213,0.3467,2597.6,2597.4,0.34672]
[1729671887415,1.9671,2597.8,2597.4,0.34672]
[1729671887609,7.26186,2597.9,2597.5,3.01]
[1729671887917,7.26186,2597.9,2597.6,0.34669]
[1729671888113,6.9152,2597.9,2597.7,1.8452]
[1729671888420,0.34667,2597.8,2597.7,3.7505]
[1729671890119,7.59216359,2598.1,2597.7,3.7505]
[1729671890120,5.69676359,2598.1,2597.7,3.7505]
[1729671890323,2.48896359,2598.3,2598.0,3.01]
[1729671890522,3.9337,2598.5,2598.0,3.01]
[1729671890523,0.34663,2598.1,2598.0,3.01]
[1729671890831,2.48896359,2598.4,2597.7,6.9583]
[1729671890832,7.56851608,2598.4,2597.7,10.31497]
[1729671891019,0.34665,2597.9,2597.7,10.31497]
[1729671891215,0.34665,2597.9,2597.7,9.9683]
[1729671891714,0.34667,2597.8,2597.7,5.1131]
[1729671891922,0.34671,2597.5,2597.4,5.0426]
[1729671892113,2.17949,2597.7,2597.4,5.0426]
[1729671892316,0.34669,2597.6,2597.4,5.0426]
[1729671892717,1.8328,2597.7,2597.4,5.0426]
[1729671893117,0.3467,2597.6,2597.4,5.0426]
[1729671895124,0.34669,2597.6,2597.4,5.0426]
[1729671895327,0.34671,2597.5,2597.4,3.2078]
[1729671898927,0.3467,2597.6,2597.4,3.2078]
[1729671899226,2.17949,2597.7,2597.4,3.55451]
[1729671899427,1.8328,2597.7,2597.5,1.8985]
[1729671899616,0.34669,2597.6,2597.5,1.8985]
[1729671900031,2.17949,2597.7,2597.5,1.8985]
[1729671900424,0.34669,2597.6,2597.5,1.8985]
[1729671900629,0.34671,2597.5,2597.4,3.2078]
[1729671900926,0.3467,2597.6,2597.4,3.2078]
[1729671901125,1.8328,2597.7,2597.4,3.2078]
[1729671901126,0.34671,2597.5,2597.4,3.2078]
[1729671901525,0.3467,2597.6,2597.4,3.2078]
[1729671901726,2.17949,2597.7,2597.4,3.55452]
[1729671901923,0.34669,2597.7,2597.5,1.9447]
[1729671902119,0.34669,2597.7,2597.5,5.8167]
[1729671903030,4.47346359,2597.8,2597.5,5.8167]
[1729671903228,1.8019,2597.9,2597.5,5.8167]
[1729671903229,4.29086359,2597.9,2597.5,5.8167]
[1729671903428,4.29086359,2597.9,2597.5,6.1634]
[1729671903429,2.83563359,2597.8,2597.5,6.1634]
[1729671904032,2.48896359,2597.8,2597.7,0.34668]
[1729671904330,2.29465,2598.0,2597.5,5.8167]
[1729671904331,2.83562359,2597.9,2597.6,0.34669]
[1729671904532,2.83562359,2597.9,2597.7,6.2178]
[1729671904729,0.34666,2597.9,2597.7,3.2078]
[1729671904925,2.48896359,2597.9,2597.7,3.55448]
[1729671905130,2.83561359,2598.0,2597.7,3.55448]
[1729671906125,2.48896359,2598.0,2597.8,0.34666]
[1729671906327,2.48896359,2598.1,2597.9,0.53664857]
[1729671906637,2.48896359,2598.1,2598.0,3.6377]
[1729671906638,2.83968256,2598.1,2598.0,3.6377]
[1729671907235,0.34663,2598.1,2598.0,3.6377]
[1729671907735,2.83968256,2598.1,2598.0,3.6377]
[1729671908237,0.34663,2598.1,2598.0,3.6377]
[1729671909030,0.34664,2598.0,2597.9,0.18999857]
[1729671909234,0.34664,2598.1,2597.8,4.21007]
[1729671909433,2.49305256,2598.2,2598.0,0.34664]
[1729671909636,2.49305256,2598.2,2597.9,3.20529879]
[1729671909829,2.83967256,2598.2,2597.9,3.55194879]
[1729671910235,2.49305256,2598.2,2598.0,0.34664]
[1729671910435,2.49305256,2598.3,2598.0,1.9646]
[1729671910732,0.34662,2598.2,2598.0,1.9646]
[1729671910936,0.34663,2598.1,2598.0,1.9646]
[1729671911134,2.49305256,2598.3,2597.9,0.19529879]
[1729671911135,0.34664,2598.0,2597.9,0.19529879]
[1729671911433,4.04324,2598.0,2597.9,0.19529879]
[1729671915345,2.49305256,2598.1,2598.0,0.34664]
[1729671915641,0.34659,2598.4,2598.1,0.34663]
[1729671915840,0.34659,2598.4,2598.1,3.35663]
[1729671916048,0.34659,2598.4,2598.2,5.1907]
[1729671916240,0.34659,2598.4,2598.3,1.8779]
[1729671917041,5.7281,2598.5,2598.3,1.8779]
[1729671917242,2.49305256,2598.6,2598.4,3.01]
[1729671917445,0.86622,2599.2,2598.4,3.01]
[1729671917446,8.12375256,2598.8,2598.4,3.01]
[1729671917642,3.7947,2598.8,2598.5,3.2078]
[1729671917946,0.34653,2598.9,2598.6,0.34655]
[1729671918134,0.34653,2598.9,2598.6,2.32945]
[1729671918641,2.49305256,2599.1,2598.8,3.35653]
[1729671918839,3.7947,2599.2,2599.0,3.01]
[1729671919038,3.2078,2599.3,2599.0,3.01]
[1729671919238,0.34649,2599.2,2598.9,1.9705]
[1729671919440,0.34649,2599.2,2598.9,2.31702]
[1729671919640,3.55427,2599.3,2599.0,0.3465]
[1729671919840,3.2078,2599.3,2599.0,1.8406]
[1729671920243,3.2078,2599.3,2599.0,2.1871]
[1729671920447,4.03705,2599.5,2599.1,5.34259]
[1729671920651,3.6906,2599.5,2599.1,5.34259]
[1729671920852,4.07020911,2599.4,2599.1,5.34259]
[1729671921155,0.34647,2599.3,2599.1,4.9961]
[1729671921454,4.07020911,2599.4,2599.1,8.2039]
[1729671921649,4.41666911,2599.4,2599.1,8.2039]
[1729671921849,0.34647,2599.3,2599.1,8.2039]
[1729671922447,4.41666911,2599.4,2599.1,8.2039]
[1729671922647,0.34646,2599.4,2599.1,8.2039]
[1729671923149,5.084,2599.7,2599.1,8.2039]
[1729671923347,1.9793,2599.6,2599.1,5.1939]
[1729671923544,6.27178909,2599.6,2599.1,5.1939]
[1729671923750,0.34644,2599.5,2599.1,46.34038]
[1729671923950,0.34647,2599.4,2599.1,45.9939]
[1729671924453,2.32573,2599.6,2599.3,3.35646]
[1729671924647,3.2078,2599.7,2599.4,1.8961]
[1729671924842,0.34644,2599.5,2599.4,1.8961]
[1729671926556,1.878,2599.8,2599.4,1.8961]
[1729671926752,0.34643,2599.6,2599.4,1.8961]
[1729671927454,1.878,2599.8,2599.4,1.8961]
[1729671927455,0.34642,2599.7,2599.4,5.1039]
[1729671927650,0.34643,2599.6,2599.4,5.1039]
[1729671927856,0.34643,2599.6,2599.5,3.01]
[1729671928555,1.878,2599.8,2599.4,5.1039]
[1729671928753,0.34644,2599.5,2599.4,1.8961]
[1729671931461,1.878,2599.8,2599.4,1.8961]
[1729671931760,0.34644,2599.6,2599.4,1.8961]
[1729671931959,1.878,2599.8,2599.4,1.8961]
[1729671932159,0.34644,2599.5,2599.4,1.8961]
[1729671932357,0.34641,2599.8,2599.4,5.25255]
[1729671932556,1.9793,2599.9,2599.5,1.8984]
[1729671932761,0.34643,2599.6,2599.5,1.8984]
[1729671933057,1.9793,2599.9,2599.5,1.8984]
[1729671933459,0.34642,2599.7,2599.5,1.8984]
[1729671934157,1.7942,2599.8,2599.5,1.8984]
[1729671934356,3.2078,2600.1,2599.6,3.01]
[1729671934560,3.55417,2600.1,2599.8,3.01]
[1729671934862,3.55417,2600.1,2599.9,1.9516]
[1729671934863,3.2078,2600.1,2599.9,1.9516]
[1729671935058,0.34634,2600.3,2600.0,4.8869]
[1729671935464,0.34634,2600.3,2600.0,5.23327]
[1729671935663,3.2078,2600.4,2600.0,8.7325]
[1729671935960,0.34632,2600.4,2600.2,3.01]
[1729671936161,0.34632,2600.5,2600.2,3.01]
[1729671936556,0.34631,2600.5,2600.2,3.01]
[1729671936756,1.8066,2600.6,2600.2,3.01]
[1729671937064,0.34632,2600.4,2600.2,3.01]
[1729671937559,3.2078,2600.7,2600.2,3.01]
[1729671937762,0.34631,2600.5,2600.2,3.01]
[1729671937960,3.2078,2600.7,2600.2,3.01]
[1729671938160,0.34632,2600.5,2600.2,3.01]
[1729671938662,0.34632,2600.5,2600.2,6.8556]
[1729671938860,3.2078,2600.7,2600.2,6.8556]
[1729671939063,3.55409,2600.7,2600.4,3.01]
[1729671939262,3.55409,2600.7,2600.5,1.8652]
[1729671939556,3.2078,2600.7,2600.5,1.8652]
[1729671939759,0.34629,2600.6,2600.5,1.8652]
[1729671940351,0.34633,2600.4,2600.2,6.2178]
[1729671940557,0.34633,2600.4,2600.0,2.45474569]
[1729671940558,0.34633,2600.4,2600.1,1.8652]
[1729671940762,1.9251,2600.5,2600.1,1.8652]
[1729671940959,0.34634,2600.3,2600.2,3.2078]
[1729671941160,3.7888,2600.6,2600.2,3.2078]
[1729671941161,2.3083,2600.6,2600.2,6.56414]
[1729671941364,0.34631,2600.5,2600.4,3.01]
[1729671942757,1.962,2600.6,2600.4,3.01]
[1729671942758,2.3083,2600.6,2600.4,3.01]
[1729671942958,0.34629,2600.7,2600.4,3.01]
[1729671943254,3.6278,2600.9,2600.5,1.9463]
[1729671943255,0.34629,2600.6,2600.5,1.9463]
[1729671944267,5.4729,2600.9,2600.5,1.9463]
[1729671944464,0.34629,2600.6,2600.5,1.9463]
[1729671944967,0.34629,2600.7,2600.5,1.9463]
[1729671945170,0.34629,2600.6,2600.5,1.9463]
[1729671945761,0.34629,2600.7,2600.5,1.9463]
[1729671946157,5.4729,2600.9,2600.5,1.9463]
[1729671946467,0.34629,2600.7,2600.6,3.01]
[1729671948263,0.34627,2600.8,2600.6,3.01]
[1729671948470,0.34627,2600.8,2600.6,4.8155]
[1729671948662,3.99236,2600.9,2600.6,6.94255055]
[1729671948962,0.34627,2600.8,2600.6,9.9532]
[1729671949168,3.6461,2600.9,2600.6,10.14619637]
[1729671949360,0.34627,2600.8,2600.6,10.14619637]
[1729671950165,3.6461,2600.9,2600.6,10.14619637]
[1729671950373,2.19136,2600.9,2600.6,10.49248637]
[1729671950563,2.19136,2600.9,2600.6,10.14619637]
[1729671950564,1.8451,2600.9,2600.6,10.14619637]
[1729671950857,2.31944,2601.1,2600.8,3.01]
[1729671951065,0.34624,2601.0,2600.9,1.9331]
[1729671952462,1.7928,2601.0,2600.6,8.21629637]
[1729671952666,0.34628,2600.7,2600.6,8.21629637]
[1729671952967,0.34628,2600.7,2600.6,5.00849637]
[1729671953163,0.34628,2600.7,2600.6,8.85329637]
[1729671953369,0.34628,2600.8,2600.6,8.85329637]
[1729671953671,0.34628,2600.8,2600.6,5.00849637]
[1729671954471,0.34628,2600.7,2600.6,5.00849637]
[1729671954775,0.34628,2600.8,2600.6,5.00849637]
[1729671954959,0.34628,2600.7,2600.6,5.00849637]
[1729671955160,1.7928,2601.0,2600.4,4.8824]
[1729671955161,0.34631,2600.6,2600.4,4.8824]
[1729671955564,1.7928,2601.0,2600.4,5.22871]
[1729671955869,0.34628,2600.8,2600.6,3.01]
[1729671956066,1.7928,2601.0,2600.7,0.1945699]
[1729671956067,0.34626,2600.9,2600.7,0.1945699]
[1729671956368,0.34628,2600.8,2600.6,3.01]
[1729671956766,0.34628,2600.7,2600.6,3.20116214]
[1729671957362,1.7928,2601.0,2600.6,3.20116214]
[1729671957570,0.34628,2600.8,2600.6,3.20116214]
[1729671958076,1.7928,2601.0,2600.6,3.20116214]
[1729671958077,0.34628,2600.7,2600.6,3.20116214]
[1729671958276,1.7928,2601.0,2600.6,0.19116214]
[1729671958467,0.34627,2600.9,2600.6,3.01]
[1729671958772,1.7928,2601.0,2600.6,3.20025725]
[1729671958961,0.34628,2600.7,2600.6,3.20025725]
[1729671959167,0.34631,2600.5,2600.4,4.8824]
[1729671959568,0.34631,2600.5,2600.4,6.8556]
[1729671959871,4.31329358,2600.7,2600.2,3.01]
[1729671960066,0.34632,2600.4,2600.2,3.01]
[1729671960263,0.34633,2600.4,2600.2,3.01]
[1729671960868,1.9167,2600.5,2600.2,3.01]
[1729671960869,0.34633,2600.3,2600.2,3.01]
[1729671961073,0.34633,2600.4,2600.2,3.01]
[1729671961572,1.9167,2600.5,2600.2,3.01]
[1729671961774,0.34633,2600.3,2600.2,3.01]
[1729671962173,0.34633,2600.4,2600.2,3.01]
[1729671962371,1.9167,2600.5,2600.2,3.01]
[1729671962677,2.26301,2600.5,2600.4,3.01]
[1729671962874,1.9167,2600.5,2600.2,3.01]
[1729671963074,0.34633,2600.3,2600.2,3.01]
[1729671963279,1.9167,2600.5,2600.2,3.01]
[1729671963471,0.34633,2600.3,2600.2,3.01]
[1729671963869,0.34633,2600.4,2600.2,3.01]
[1729671964673,1.9167,2600.5,2600.2,3.01]
[1729671964979,0.34635,2600.2,2600.1,3.2078]
[1729671966671,0.34635,2600.2,2599.8,3.01]
[1729671966672,3.8456,2600.2,2599.8,6.2178]
[1729671966868,0.34639,2599.9,2599.8,6.2178]
[1729671967174,0.34639,2599.9,2599.8,47.0178]
[1729671967677,4.19279,2599.9,2599.8,3.2078]
[1729671970078,0.34639,2599.9,2599.8,3.2078]
[1729671972982,0.34638,2600.0,2599.8,6.56419]
[1729671973777,0.34639,2599.9,2599.8,6.56419]
[1729671973981,0.34639,2599.9,2599.8,3.2078]
[1729671974178,4.19279,2599.9,2599.8,3.2078]
[1729671977391,3.8464,2599.9,2599.4,45.9665]
[1729671977585,0.34644,2599.5,2599.4,45.9665]
[1729671977791,0.34644,2599.5,2599.4,3.2078]
[1729671978092,11.96551915,2599.5,2598.9,3.8699]
[1729671978389,0.34651,2599.0,2598.9,44.6699]
[1729671978589,3.8762,2599.3,2598.8,3.2078]
[1729671978786,2.16182,2598.9,2598.8,3.2078]
[1729671979491,0.34652,2598.9,2598.8,3.2078]
[1729671980693,1.8153,2599.1,2598.7,3.01]
[1729671980694,0.34653,2598.8,2598.7,3.01]
[1729671980991,0.34655,2598.7,2598.6,40.8]
[1729671983993,0.34656,2598.6,2598.5,3.8699]
[1729671984193,0.34659,2598.4,2598.3,3.01]
[1729671984810,0.34658,2598.5,2598.3,3.01]
[1729671985009,1.8659,2598.8,2598.3,3.01]
[1729671985303,4.28288199,2598.7,2598.3,3.01]
[1729671985508,0.34659,2598.4,2598.3,3.01]
[1729671985710,4.28288199,2598.7,2598.3,3.01]
[1729671985711,1.906,2598.6,2598.3,3.01]
[1729671985908,0.34658,2598.5,2598.3,3.01]
[1729671986607,1.8659,2598.8,2598.3,3.01]
[1729671986906,0.34659,2598.4,2598.3,3.01]
[1729671987711,0.34658,2598.5,2598.3,3.01]
[1729671988705,4.29238503,2598.7,2598.3,3.01]
[1729671988908,0.34658,2598.5,2598.3,3.01]
[1729671989710,4.29238503,2598.7,2598.3,3.01]
[1729671989910,0.3466,2598.3,2598.2,3.6581]
[1729671990216,0.3466,2598.3,2598.2,6.6681]
[1729671994117,4.29238503,2598.7,2598.2,7.01471]
[1729671994414,0.34656,2598.6,2598.5,3.01]
[1729671995909,0.34656,2598.7,2598.5,3.01]
[1729671996110,0.34656,2598.6,2598.5,3.01]
[1729671996312,0.34655,2598.7,2598.5,3.01]
[1729671996514,0.34655,2598.7,2598.6,1.9498]
[1729671997522,0.3466,2598.4,2598.2,1.8064]
[1729671997822,0.3466,2598.4,2598.3,3.01]
[1729671998711,1.9196,2598.6,2598.2,3.7562]
[1729671998928,0.3466,2598.3,2598.2,6.7662]
[1729671999422,0.3466,2598.3,2598.2,1.8064]
[1729671999613,0.34661,2598.2,2598.1,3.2078]
[1729672000616,0.34661,2598.2,2598.1,6.2178]
[1729672001416,0.34661,2598.2,2598.1,8.0754]
[1729672001825,3.2078,2598.5,2598.1,8.42202]
[1729672002014,0.3466,2598.4,2598.1,8.42203]
[1729672004127,0.3466,2598.4,2598.1,8.0754]
[1729672004627,0.3466,2598.4,2598.1,8.42203]
[1729672005319,0.3466,2598.4,2598.1,5.21423]
[1729672005721,0.3466,2598.3,2598.1,4.8676]
[1729672006224,0.3466,2598.4,2598.1,5.21423]
[1729672006816,0.34657,2598.5,2598.1,4.8676]
[1729672007023,1.9196,2598.6,2598.1,4.8676]
[1729672007024,0.3466,2598.4,2598.1,4.8676]
[1729672007230,1.9196,2598.6,2598.1,4.8676]
[1729672007428,0.34661,2598.3,2598.1,4.8676]
[1729672008433,0.34659,2598.4,2598.1,5.21422]
[1729672012228,1.9196,2598.6,2598.2,40.8]
[1729672012531,0.34659,2598.4,2598.2,40.8]
[1729672013123,0.34659,2598.4,2598.3,1.8731]
[1729672014327,0.34659,2598.4,2598.3,3.2631]
[1729672014837,3.2078,2598.7,2598.3,8.5019]
[1729672015035,0.34659,2598.4,2598.3,1.8731]
[1729672015434,3.2078,2598.7,2598.3,5.7219]
[1729672015631,0.34658,2598.5,2598.3,1.8731]
[1729672015934,3.2078,2598.7,2598.3,1.8731]
[1729672015935,0.34659,2598.4,2598.3,1.8731]
[1729672016127,0.34659,2598.4,2598.3,3.2631]
[1729672016323,0.34658,2598.5,2598.3,8.5019]
[1729672016527,0.34658,2598.5,2598.4,1.39]
[1729672016726,0.34659,2598.4,2598.3,1.8731]
[1729672016926,0.34659,2598.4,2598.3,3.2631]
[1729672017129,5.0529,2598.4,2598.1,40.8]
[1729672017332,1.39,2598.2,2597.9,3.3671]
[1729672017525,0.34664,2598.1,2598.0,1.39]
[1729672018034,1.39,2598.3,2598.0,1.39]
[1729672018230,0.34662,2598.2,2597.9,45.98442227]
[1729672018626,0.34663,2598.1,2597.9,45.7871]
[1729672019228,8.7758,2598.4,2597.9,45.7871]
[1729672019432,0.34663,2598.1,2597.9,45.7871]
[1729672020529,0.34664,2598.1,2597.9,45.7871]
[1729672021840,3.2078,2598.4,2597.9,49.6359]
[1729672022027,3.2078,2598.4,2598.2,3.01]
[1729672022234,3.2078,2598.4,2598.3,3.8174]
[1729672022540,3.55439,2598.4,2598.3,3.8174]
[1729672023333,3.2078,2598.4,2598.3,3.8174]
[1729672023543,2.82473315,2598.6,2598.3,8.0128]
[1729672023742,2.82473315,2598.6,2598.3,4.16399]
[1729672023941,0.34657,2598.6,2598.3,4.16399]
[1729672024240,2.47816315,2598.7,2598.5,0.34657]
[1729672024443,0.34655,2598.7,2598.4,3.35658]
[1729672024638,2.82470315,2598.8,2598.4,3.35658]
[1729672025040,0.34655,2598.7,2598.4,3.35658]
[1729672025542,2.47816315,2598.9,2598.8,0.34653]
[1729672025739,3.2078,2599.0,2598.8,3.01]
[1729672025740,5.68596315,2599.0,2598.8,3.01]
[1729672026036,3.55431,2599.0,2598.9,1.8167]
[1729672026637,3.55431,2599.0,2598.9,5.6647]
[1729672026836,3.55431,2599.0,2598.9,1.8167]
[1729672027043,3.55431,2599.0,2598.9,5.6647]
[1729672027238,3.2078,2599.0,2598.9,1.8167]
[1729672027936,3.55431,2599.0,2598.9,1.8167]
[1729672028541,0.3465,2599.1,2598.9,5.6647]
[1729672028843,2.47816315,2599.1,2598.9,1.8167]
[1729672029038,0.34653,2598.9,2598.7,1.9189]
[1729672029345,0.34653,2598.9,2598.7,3.8653]
[1729672030242,3.01,2598.9,2598.3,1.00148735]
[1729672030440,0.34659,2598.4,2598.3,1.9464]
[1729672031740,0.34661,2598.2,2598.1,3.2078]
[1729672033939,0.34661,2598.2,2597.9,47.2284]
[1729672034243,0.34661,2598.2,2597.9,50.4362]
[1729672035454,1.8806,2598.3,2597.9,50.78285]
[1729672035657,0.34662,2598.2,2597.9,50.78285]
[1729672036451,0.34662,2598.2,2597.9,50.4362]
[1729672037647,1.8806,2598.3,2597.9,50.4362]
[1729672037844,0.34664,2598.0,2597.9,48.9642]
[1729672038147,1.8806,2598.3,2597.9,48.9642]
[1729672038148,1.9046,2598.2,2597.9,45.9542]
[1729672038346,2.22721,2598.3,2598.0,3.01]
[1729672038741,0.34661,2598.2,2598.0,3.01]
[1729672039545,1.8806,2598.3,2598.0,3.01]
[1729672039741,0.34663,2598.1,2598.0,3.01]
[1729672040747,0.34663,2598.2,2598.0,3.01]
[1729672040942,1.8806,2598.3,2598.0,3.01]
[1729672041247,0.34662,2598.2,2598.0,3.01]
[1729672043151,0.34662,2598.2,2598.1,1.8619]
[1729672043357,1.8806,2598.3,2598.1,1.8619]
[1729672043547,2.22721,2598.3,2598.1,1.8619]
[1729672043855,1.8806,2598.3,2598.1,1.8619]
[1729672044045,0.34661,2598.2,2598.1,1.8619]
[1729672044654,2.22721,2598.3,2598.1,1.8619]
[1729672045243,0.34661,2598.2,2598.1,1.8619]
[1729672049552,1.8806,2598.3,2598.1,1.8619]
[1729672049751,2.22721,2598.3,2598.1,1.8619]
[1729672051054,1.8605,2598.4,2598.2,3.35661]
[1729672051254,1.8605,2598.4,2598.2,4.9151]
[1729672051553,1.8605,2598.4,2598.2,5.26171]
[1729672052853,2.20709,2598.4,2598.2,5.26171]
[1729672053248,7.59056315,2598.6,2598.3,0.3466]
[1729672053249,0.34657,2598.5,2598.3,0.3466]
[1729672053453,0.3466,2598.3,2598.1,2.20852]
[1729672054057,2.47816315,2598.5,2598.1,1.8619]
[1729672054058,1.9476,2598.4,2598.1,1.8619]
[1729672054254,0.34661,2598.2,2598.1,1.8619]
[1729672056057,0.34661,2598.3,2598.1,1.8619]
[1729672056261,1.9476,2598.4,2598.1,1.8619]
[1729672056561,0.34661,2598.3,2598.1,1.8619]
[1729672056959,0.34661,2598.2,2598.1,1.8619]
[1729672058059,4.42576315,2598.4,2598.1,1.8619]
[1729672058249,1.9476,2598.4,2598.1,1.8619]
[1729672058454,0.34664,2598.0,2597.9,42.7464]
[1729672058651,6.2178,2598.0,2597.6,1.00148735]
[1729672058864,3.2078,2597.7,2597.0,1.00148735]
[1729672059159,0.34676,2597.1,2597.0,3.6291]
[1729672059359,2.47816315,2597.5,2597.0,3.6291]
[1729672059570,2.47816315,2597.5,2597.0,44.4291]
[1729672059571,0.34675,2597.2,2597.0,44.4291]
[1729672060162,3.6891,2597.4,2597.0,44.4291]
[1729672060362,0.34674,2597.3,2597.0,44.4291]
[1729672061258,4.03583,2597.4,2597.0,44.77587]
[1729672061766,3.6891,2597.4,2597.0,44.4291]
[1729672061966,0.34675,2597.2,2597.0,44.4291]
[1729672064259,0.34674,2597.3,2597.0,44.4291]
[1729672064463,0.34673,2597.4,2597.0,44.77587]
[1729672064673,0.34673,2597.3,2597.0,44.4291]
[1729672065370,3.2078,2597.5,2597.0,42.6144]
[1729672065371,0.34676,2597.1,2597.0,42.6144]
[1729672065665,2.30076,2597.2,2597.0,42.6144]
[1729672065867,0.34676,2597.1,2597.0,42.6144]
[1729672067566,2.26066,2597.1,2597.0,1.8144]
[1729672069468,0.34677,2597.0,2596.9,44.0078]
[1729672069657,2.26067,2597.1,2596.9,44.0078]
[1729672070564,2.26067,2597.1,2596.9,40.8]
[1729672071661,1.9139,2597.1,2596.9,40.8]
[1729672071863,2.26066,2597.1,2596.9,40.8]
[1729672072965,1.9139,2597.1,2596.9,40.8]
[1729672074668,2.26066,2597.1,2596.9,40.8]
[1729672075770,2.26066,2597.1,2596.8,3.40107228]
[1729672076259,2.26066,2597.1,2596.8,44.20107228]
[1729672076660,2.26066,2597.1,2596.8,44.54787228]
[1729672076871,1.9139,2597.1,2596.8,44.54787228]
[1729672077364,1.9139,2597.1,2596.8,41.34007228]
[1729672077562,1.9139,2597.1,2596.8,44.54787228]
[1729672078072,2.26067,2597.1,2596.8,44.20107228]
[1729672078665,2.26067,2597.1,2596.8,44.54787228]
[1729672079064,1.9139,2597.1,2596.8,44.54787228]
[1729672080073,2.30076,2597.2,2596.9,0.34678]
[1729672080265,3.69076,2597.2,2597.1,1.39]
[1729672081570,8.3443,2597.4,2597.1,1.39]
[1729672081771,0.34674,2597.3,2596.9,0.34678]
[1729672082467,0.34674,2597.3,2597.2,1.39]
[1729672083774,1.39,2597.3,2597.2,1.39]
[1729672083977,1.39,2597.3,2597.2,1.8092]
[1729672084875,3.2078,2597.4,2597.2,1.8092]
[1729672085072,0.34669,2597.7,2597.3,1.39]
[1729672085273,7.0347,2597.8,2597.2,5.17]
[1729672085274,1.39,2597.4,2597.2,5.17]
[1729672085967,1.39,2597.4,2597.2,5.51674]
[1729672087970,1.39,2597.4,2597.2,5.17]
[1729672088579,1.39,2597.4,2597.3,1.39]
[1729672089883,1.73672,2597.4,2597.3,1.39]
[1729672090184,1.39,2597.5,2597.3,1.39]
[1729672090380,0.34672,2597.4,2597.3,1.39]
[1729672091082,1.73672,2597.4,2597.3,1.39]
[1729672091271,0.34673,2597.3,2597.2,5.17]
[1729672091475,1.73673,2597.3,2597.2,1.8092]
[1729672091672,0.34675,2597.2,2597.1,1.958]
[1729672091873,1.73675,2597.2,2597.1,1.958]
[1729672092890,1.73675,2597.2,2597.1,3.348]
[1729672095079,1.73675,2597.2,2597.1,1.958]
[1729672096281,0.34675,2597.2,2597.1,3.348]
[1729672096477,1.73675,2597.2,2597.1,1.958]
[1729672097483,1.39,2597.2,2596.9,5.1717]
[1729672097682,1.73677,2597.0,2596.9,5.1717]
[1729672098582,1.73677,2597.0,2596.9,3.2078]
[1729672098982,0.34677,2597.0,2596.9,4.5978]
[1729672100584,0.34677,2597.0,2596.9,6.5462]
[1729672102283,3.99927,2597.1,2596.9,6.5462]
[1729672102589,3.99927,2597.1,2597.0,1.39]
[1729672103090,2.20357,2597.1,2597.0,1.39]
[1729672103287,0.34677,2597.1,2597.0,1.39]
[1729672103683,0.34677,2597.0,2596.9,5.1562]
[1729672103879,0.34677,2597.0,2596.9,6.5462]
[1729672105990,0.34677,2597.1,2596.9,6.5462]
[1729672106188,0.34677,2597.1,2597.0,1.39]
[1729672112302,3.86816315,2597.2,2596.8,5.33357228]
[1729672112597,0.34679,2596.9,2596.8,6.72357228]
[1729672113594,2.25589,2596.9,2596.8,6.72357228]
[1729672114301,4.14409,2596.9,2596.8,4.79107228]
[1729672114796,6.62225315,2596.9,2596.8,4.79107228]
[1729672116295,6.62225315,2596.9,2596.8,1.58327228]
[1729672117392,4.14409,2596.9,2596.8,1.58327228]
[1729672122302,4.14409,2596.9,2596.8,1.39]
[1729672122500,0.3468,2596.8,2596.7,1.39]
[1729672122798,2.2323,2596.8,2596.7,1.39]
[1729672124909,2.2323,2596.8,2596.7,1.58313519]
[1729672125099,3.2755,2596.8,2596.6,45.8854]